bitfinex-derivatives/quotes_SOLF0:USTF0_20251107
["timestamp","ask_amount","ask_price","bid_price","bid_amount"]
[1762480337932,9.73944036,155.51,155.43,3.13]
[1762480338132,9.73944036,155.5,155.44,3.13]
[1762480338337,0.04381411,155.49,155.46,3.13]
[1762480338544,0.04381411,155.49,155.46,3.17295139]
[1762480339039,0.04381411,155.49,155.48,8.9214]
[1762480339441,0.04381411,155.49,155.48,3.13]
[1762480339742,0.04381411,155.49,155.46,3.17295139]
[1762480339743,9.79347336,155.49,155.46,3.17295139]
[1762480339937,4.75871571,155.48,155.46,3.17295139]
[1762480340137,0.04381411,155.49,155.46,3.17295139]
[1762480340339,4.7608357,155.48,155.47,3.13]
[1762480340734,0.04381411,155.49,155.47,3.13]
[1762480340935,4.76111157,155.48,155.46,0.04295139]
[1762480341244,4.76219965,155.47,155.46,3.17295139]
[1762480341836,0.04381411,155.49,155.46,3.17295139]
[1762480342436,4.76790773,155.48,155.46,3.17295139]
[1762480342638,0.04381411,155.49,155.46,3.17295139]
[1762480342838,4.76802575,155.48,155.46,3.17295139]
[1762480343138,4.76802575,155.47,155.46,0.04295139]
[1762480343337,4.76802575,155.47,155.46,3.17295139]
[1762480343738,0.04381411,155.49,155.46,3.17295139]
[1762480343939,4.77206618,155.48,155.46,3.17295139]
[1762480344134,0.04381411,155.49,155.46,3.17295139]
[1762480344442,4.77244974,155.48,155.46,3.17295139]
[1762480344741,0.04381411,155.49,155.46,8.96525139]
[1762480344938,0.04381411,155.49,155.47,3.13]
[1762480345345,4.78080621,155.48,155.47,3.13]
[1762480345549,0.04381411,155.49,155.46,0.04295139]
[1762480345841,4.77870172,155.48,155.46,0.04295139]
[1762480346146,4.77870172,155.47,155.46,3.17295139]
[1762480346535,0.04381411,155.49,155.46,3.17295139]
[1762480347045,0.04381411,155.49,155.47,3.13]
[1762480348249,11.62908692,155.56,155.48,3.13]
[1762480348546,9.79891486,155.55,155.48,3.13]
[1762480348745,9.79891486,155.55,155.42,66.48]
[1762480348746,9.79891486,155.54,155.52,3.13]
[1762480349045,4.7827935,155.53,155.45,3.13]
[1762480349244,0.04407019,155.51,155.49,3.13]
[1762480349442,0.04497827,155.52,155.49,3.13]
[1762480350543,4.78393027,155.51,155.49,3.13]
[1762480350743,0.04497827,155.52,155.49,3.13]
[1762480350941,4.78448555,155.51,155.49,3.13]
[1762480351135,4.78448555,155.5,155.49,3.13]
[1762480351947,4.78448555,155.5,155.48,0.04695539]
[1762480352154,4.78448555,155.49,155.48,0.04695539]
[1762480352342,9.74933719,155.49,155.41,204.49078604]
[1762480352547,0.04497827,155.52,155.41,201.36078604]
[1762480352548,9.74880464,155.48,155.41,201.36078604]
[1762480352753,9.74880464,155.47,155.41,201.36078604]
[1762480353046,9.74880464,155.46,155.38,3.13]
[1762480353347,0.04152415,155.44,155.4,3.17454222]
[1762480353553,0.04958622,155.44,155.4,3.17616273]
[1762480354552,4.77789738,155.43,155.4,0.04616273]
[1762480354852,0.04958622,155.44,155.4,0.04616273]
[1762480355049,4.77637821,155.43,155.4,0.04616273]
[1762480355348,0.04958622,155.44,155.4,0.04616273]
[1762480355548,4.7724316,155.43,155.4,0.04616273]
[1762480355745,0.04958622,155.44,155.4,0.04616273]
[1762480355946,4.77244296,155.43,155.4,0.04616273]
[1762480356143,0.04958622,155.44,155.4,3.17616273]
[1762480356346,4.77007373,155.43,155.4,3.17616273]
[1762480356646,0.04958622,155.44,155.4,3.17616273]
[1762480356951,4.77188893,155.43,155.4,0.04616273]
[1762480357153,0.04958622,155.44,155.4,0.04616273]
[1762480357449,4.77095555,155.43,155.4,0.04616273]
[1762480357641,0.04958622,155.44,155.4,0.04616273]
[1762480357843,4.76977619,155.43,155.4,0.04616273]
[1762480358048,9.86826567,155.42,155.3,3.02]
[1762480358340,15.70855259,155.41,155.3,3.02]
[1762480358654,9.86826567,155.4,155.3,3.02]
[1762480358950,5.84028692,155.41,155.3,3.02]
[1762480358951,9.86826567,155.39,155.3,3.02]
[1762480359154,5.83841734,155.36,155.33,0.04300936]
[1762480359949,5.7968,155.34,155.33,0.04300936]
[1762480360456,4.74600132,155.35,155.33,0.04300936]
[1762480360754,4.74590979,155.34,155.33,0.04300936]
[1762480361149,4.74590979,155.35,155.33,0.04300936]
[1762480361346,0.04231734,155.36,155.33,0.04300936]
[1762480361542,4.74057008,155.35,155.33,0.04300936]
[1762480361742,0.04231734,155.36,155.33,0.04300936]
[1762480361948,4.74057679,155.35,155.33,0.04300936]
[1762480362149,0.04231734,155.36,155.33,0.04300936]
[1762480362350,4.7360063,155.35,155.33,0.04300936]
[1762480363045,5.7968,155.34,155.33,0.04300936]
[1762480363247,4.7360063,155.35,155.33,0.04300936]
[1762480363760,10.5328063,155.35,155.33,0.04300936]
[1762480364253,5.7968,155.35,155.33,0.04300936]
[1762480364751,0.04231734,155.36,155.33,0.04300936]
[1762480364955,4.7330882,155.35,155.33,0.04300936]
[1762480365348,6.0130882,155.34,155.22,3.23]
[1762480365553,76.31157768,155.33,155.22,3.23]
[1762480365756,9.83157768,155.32,155.22,3.23]
[1762480365954,10.5312882,155.31,155.22,3.23]
[1762480366150,4.7330882,155.31,155.22,3.23]
[1762480366456,0.04914029,155.28,155.25,0.04515331]
[1762480368859,0.04914029,155.28,155.25,3.27515331]
[1762480369061,0.04914029,155.28,155.25,0.04515331]
[1762480370461,5.7997,155.27,155.25,0.04515331]
[1762480370955,5.7997,155.27,155.18,3.23]
[1762480370956,5.05161071,155.27,155.18,3.23]
[1762480371156,5.05161071,155.26,155.15,3.23]
[1762480371352,5.05161071,155.25,155.15,3.23]
[1762480371550,9.76799206,155.25,155.15,3.23]
[1762480371947,5.84655333,155.22,155.18,0.04086606]
[1762480372149,0.04505333,155.22,155.18,0.04086606]
[1762480373156,5.8019,155.21,155.18,0.04086606]
[1762480373356,0.04505333,155.22,155.18,0.04086606]
[1762480373559,0.04505333,155.22,155.18,3.27086606]
[1762480374154,0.04505333,155.22,155.21,3.23]
[1762480374361,66.5,155.29,155.21,3.23]
[1762480374663,66.5,155.29,155.22,5.8011]
[1762480375367,0.04421159,155.27,155.24,0.04488939]
[1762480375763,0.04421159,155.27,155.24,3.27488939]
[1762480378658,0.04421159,155.27,155.24,0.04488939]
[1762480379365,0.04421159,155.27,155.24,3.27488939]
[1762480382161,5.0299339,155.26,155.19,3.23]
[1762480382361,5.02803352,155.25,155.19,3.23]
[1762480382564,5.84028692,155.28,155.19,3.23]
[1762480382875,15.57284628,155.27,155.14,3.23]
[1762480383069,82.05284628,155.26,155.14,3.23]
[1762480383259,0.04444098,155.22,155.18,3.27651299]
[1762480384164,5.84594098,155.22,155.18,3.27651299]
[1762480384466,0.04444098,155.22,155.18,0.04651299]
[1762480384966,9.73136953,155.21,155.06,205.24662472]
[1762480385159,9.73136953,155.2,155.06,205.24662472]
[1762480385365,5.02645755,155.19,155.06,205.24662472]
[1762480385559,5.02515451,155.18,155.06,205.24662472]
[1762480385764,4.70491198,155.2,155.06,205.24662472]
[1762480385970,0.04076597,155.15,155.11,0.04120352]
[1762480387067,0.04076597,155.15,155.12,3.23]
[1762480387468,0.04076597,155.15,155.11,0.04120352]
[1762480387469,5.8015,155.22,155.16,9.0333]
[1762480387771,5.02633479,155.21,155.16,3.23]
[1762480387972,10.82743479,155.23,155.16,3.23]
[1762480388268,9.72728707,155.22,155.16,3.23]
[1762480388463,0.04207701,155.21,155.18,3.23]
[1762480388663,0.04755986,155.21,155.18,3.27460394]
[1762480393172,11.63958692,155.28,155.22,3.19]
[1762480393363,9.78722523,155.27,155.22,3.19]
[1762480393560,5.84028692,155.31,155.22,3.19]
[1762480393767,9.7893097,155.3,155.24,8.9903]
[1762480393972,9.7893097,155.29,155.25,3.19]
[1762480394167,0.04695634,155.29,155.25,0.04475106]
[1762480394368,9.79748246,155.28,155.25,0.04475106]
[1762480394561,15.63776938,155.27,155.17,3.19]
[1762480394873,9.79748246,155.26,155.17,3.19]
[1762480395062,9.79748246,155.25,155.18,3.19]
[1762480395259,9.79712611,155.24,155.18,3.19]
[1762480395463,9.79712611,155.23,155.18,3.19]
[1762480395664,9.79712611,155.22,155.19,3.23541121]
[1762480395962,0.04720453,155.22,155.19,3.23541121]
[1762480396774,9.82669468,155.21,155.19,3.23541121]
[1762480397072,9.82669468,155.2,155.19,0.04541121]
[1762480399674,4.78967919,155.2,155.19,3.23541121]
[1762480399877,9.84357957,155.2,155.19,3.23541121]
[1762480400378,9.84357957,155.2,155.19,0.04541121]
[1762480400577,9.84357957,155.2,155.19,3.23541121]
[1762480403777,5.05390038,155.2,155.19,3.23541121]
[1762480409374,9.66671985,155.2,155.19,3.23541121]
[1762480409678,9.66671985,155.2,155.19,0.04541121]
[1762480416184,9.67063679,155.2,155.19,0.04541121]
[1762480416979,9.64431832,155.2,155.19,0.04541121]
[1762480418280,5.02758191,155.2,155.19,0.04541121]
[1762480419377,5.02758191,155.2,155.12,5.8048]
[1762480419378,6.30758191,155.2,155.12,5.8048]
[1762480419572,5.02758191,155.19,155.12,5.8048]
[1762480419785,5.02758191,155.18,155.11,3.17]
[1762480419982,5.804,155.15,155.11,3.17]
[1762480420181,10.33448713,155.19,155.11,3.17]
[1762480420378,0.04820833,155.17,155.13,0.0423239]
[1762480420584,5.04188967,155.16,155.13,0.0423239]
[1762480420785,5.04188967,155.15,155.13,0.0423239]
[1762480421087,0.04820833,155.17,155.13,0.0423239]
[1762480421276,5.03959116,155.16,155.13,0.0423239]
[1762480421586,5.03959116,155.15,155.13,0.0423239]
[1762480421785,0.04820833,155.17,155.13,0.0423239]
[1762480421989,5.8042,155.15,155.13,0.0423239]
[1762480423884,0.04820833,155.17,155.07,3.26]
[1762480423885,5.8051,155.12,155.07,3.26]
[1762480424084,4.38617666,155.16,155.07,3.26]
[1762480424390,5.03959038,155.15,155.07,3.26]
[1762480424590,5.03959038,155.14,155.07,3.26]
[1762480424886,5.8056,155.11,155.09,0.04801402]
[1762480426186,10.84081921,155.11,155.09,0.04801402]
[1762480426388,5.8056,155.11,155.09,0.04801402]
[1762480427086,0.04484503,155.12,155.09,0.04801402]
[1762480428384,5.85004503,155.12,155.09,0.04801402]
[1762480429093,5.8057,155.11,155.09,0.04801402]
[1762480430188,5.8075,155.06,154.99,3.26]
[1762480430392,4.38617666,155.09,154.99,3.26]
[1762480430689,4.38617666,155.06,154.99,3.26]
[1762480431193,8.89741497,155.06,154.99,3.26]
[1762480431393,0.04068457,155.04,155.01,0.04953193]
[1762480431695,0.04213046,155.04,155.01,0.04514414]
[1762480432284,1.8762892,155.02,155.01,0.04514414]
[1762480434294,6.92831816,155.04,155.01,0.04514414]
[1762480434588,1.91841966,155.04,155.01,0.04514414]
[1762480435491,0.04213046,155.04,155.01,3.30514414]
[1762480436492,0.04213046,155.04,155.01,0.04514414]
[1762480437395,0.04213046,155.04,155.01,3.30514414]
[1762480438193,0.04213046,155.04,155.01,0.04514414]
[1762480438390,0.04213046,155.04,155.01,3.30514414]
[1762480440092,10.8018421,155.1,155.01,3.30514414]
[1762480440293,4.9959421,155.12,155.02,3.26]
[1762480440493,4.9959421,155.15,155.02,3.26]
[1762480440798,19.25750656,155.19,155.07,3.26]
[1762480440799,4.9959421,155.17,155.07,3.26]
[1762480440998,4.9959421,155.18,155.07,3.26]
[1762480441291,4.9959421,155.21,155.11,3.30169844]
[1762480441499,4.9959421,155.22,155.11,3.26]
[1762480441696,4.9959421,155.24,155.11,3.26]
[1762480441896,4.9959421,155.23,155.11,3.26]
[1762480442099,4.9959421,155.24,155.11,3.26]
[1762480442296,0.04376096,155.19,155.16,0.04836597]
[1762480442599,0.04376096,155.19,155.16,3.30836597]
[1762480442907,0.04376096,155.19,155.18,3.26]
[1762480443096,5.0034236,155.28,155.18,3.26]
[1762480443295,5.0034236,155.28,155.19,3.26]
[1762480443600,5.00283996,155.31,155.19,3.26]
[1762480443800,5.00283996,155.3,155.19,3.26]
[1762480443997,0.04474967,155.26,155.23,0.04768219]
[1762480444196,0.04734074,155.26,155.23,3.30327531]
[1762480444500,0.04734074,155.26,155.23,0.04327531]
[1762480447000,0.04734074,155.26,155.23,3.30327531]
[1762480447207,0.04734074,155.26,155.23,0.04327531]
[1762480448503,5.84714074,155.26,155.23,0.04327531]
[1762480448906,0.04734074,155.26,155.23,0.04327531]
[1762480449803,5.17606694,155.25,155.16,3.26]
[1762480450002,5.17606694,155.24,155.16,3.26]
[1762480450204,4.58584844,155.26,155.16,3.26]
[1762480450498,5.8006,155.24,155.16,3.26]
[1762480450700,0.04911217,155.22,155.18,0.04504554]
[1762480450897,0.04911217,155.22,155.18,3.19504554]
[1762480451097,0.04911217,155.22,155.18,0.04504554]
[1762480451498,5.22637266,155.22,155.18,3.19504554]
[1762480451804,0.04911217,155.22,155.18,3.19504554]
[1762480453905,0.04911217,155.22,155.18,0.04504554]
[1762480454113,5.17804967,155.21,155.18,0.04504554]
[1762480454302,0.04911217,155.22,155.18,0.04504554]
[1762480454504,10.98362929,155.21,155.18,0.04504554]
[1762480454700,5.802,155.21,155.18,0.04504554]
[1762480454900,0.04911217,155.22,155.18,0.04504554]
[1762480455112,0.04911217,155.22,155.18,3.19504554]
[1762480457807,0.04911217,155.22,155.18,4.47504554]
[1762480458107,13.39314135,155.32,155.21,3.15]
[1762480458310,5.18117321,155.31,155.21,3.15]
[1762480458608,5.18117321,155.3,155.21,3.15]
[1762480458807,17.97907582,155.32,155.21,3.15]
[1762480458808,5.18117321,155.29,155.21,3.15]
[1762480459012,10.51628746,155.31,155.21,3.15]
[1762480459013,5.18117321,155.28,155.21,3.15]
[1762480459318,0.04139014,155.26,155.23,3.19398564]
[1762480459500,0.04786007,155.26,155.23,3.19699897]
[1762480466315,0.04786007,155.26,155.24,5.8003]
[1762480466511,0.04786007,155.26,155.25,3.15]
[1762480470321,66.3,155.34,155.23,0.04699897]
[1762480470322,72.097,155.34,155.23,0.04699897]
[1762480470514,72.097,155.34,155.27,3.15]
[1762480470709,66.3,155.34,155.27,3.15]
[1762480470919,7.8901693,155.4,155.29,3.15]
[1762480470920,5.7959,155.37,155.29,3.15]
[1762480471114,5.1729032,155.36,155.29,3.15]
[1762480471426,5.7974,155.33,155.31,0.04161976]
[1762480471623,0.04602035,155.34,155.31,0.04161976]
[1762480472126,0.04602035,155.34,155.31,3.19161976]
[1762480472526,281.1981032,155.41,155.36,3.15]
[1762480473021,281.1981032,155.41,155.39,3.15]
[1762480474128,0.04885846,155.42,155.39,8.9447]
[1762480474427,0.04885846,155.42,155.4,3.15]
[1762480475329,0.04885846,155.42,155.38,3.1910932]
[1762480475532,0.04885846,155.42,155.38,0.0410932]
[1762480475728,5.16373479,155.41,155.38,0.0410932]
[1762480475930,5.7945,155.41,155.38,0.0410932]
[1762480476432,5.7948,155.4,155.38,0.0410932]
[1762480476632,5.16526677,155.39,155.38,0.0410932]
[1762480477329,5.16526677,155.39,155.38,3.1910932]
[1762480477519,0.04885846,155.42,155.38,3.1910932]
[1762480478727,0.04885846,155.42,155.38,5.8361932]
[1762480478933,0.04885846,155.42,155.39,3.03]
[1762480479634,0.04885846,155.42,155.4,3.03]
[1762480480227,0.04885846,155.42,155.41,3.03]
[1762480481731,5.93035299,155.48,155.41,3.03]
[1762480482029,5.93035299,155.48,155.32,7.46278836]
[1762480482030,5.15897173,155.47,155.42,3.15]
[1762480482330,5.15897173,155.46,155.42,3.15]
[1762480482532,5.15897173,155.45,155.42,3.15]
[1762480482731,5.15897173,155.44,155.42,3.19571861]
[1762480482928,0.04907586,155.45,155.42,3.19571861]
[1762480483737,5.16268949,155.44,155.42,3.19571861]
[1762480483936,5.16268949,155.43,155.42,3.19571861]
[1762480484236,0.04907586,155.45,155.42,3.19571861]
[1762480485337,0.04907586,155.45,155.42,8.98921861]
[1762480485536,0.04907586,155.45,155.42,3.19571861]
[1762480486139,0.04907586,155.45,155.44,3.15]
[1762480486334,5.93035299,155.51,155.44,3.15]
[1762480486639,5.93035299,155.51,155.45,3.15]
[1762480487436,0.04186964,155.5,155.46,3.19413397]
[1762480487641,0.04697411,155.5,155.46,3.19413397]
[1762480488441,0.04697411,155.5,155.46,8.98623397]
[1762480488644,0.04697411,155.5,155.47,3.15]
[1762480490043,0.04697411,155.5,155.49,3.15]
[1762480491345,5.93035299,155.57,155.51,3.15]
[1762480492234,0.04913135,155.56,155.51,3.15]
[1762480492436,0.04913135,155.56,155.53,3.15]
[1762480496963,109.40972736,155.68,155.53,3.15]
[1762480496964,5.93035299,155.65,155.53,3.15]
[1762480497145,7.8901693,155.67,155.53,3.15]
[1762480497146,5.03479342,155.64,155.53,3.15]
[1762480497454,5.03479342,155.63,155.53,3.15]
[1762480497656,5.7851,155.66,155.58,8.9376]
[1762480497965,0.04505297,155.64,155.6,3.19134716]
[1762480501356,0.04505297,155.64,155.6,0.04134716]
[1762480501556,5.7867,155.62,155.6,0.04134716]
[1762480502052,0.04505297,155.64,155.6,3.19134716]
[1762480504460,5.01519886,155.63,155.6,0.04134716]
[1762480504660,5.01519886,155.62,155.6,3.19134716]
[1762480504861,0.04505297,155.64,155.6,3.19134716]
[1762480506552,0.04505297,155.64,155.6,8.97824716]
[1762480506764,0.04505297,155.64,155.61,3.15]
[1762480509164,0.04505297,155.64,155.6,0.04134716]
[1762480509358,4.98995161,155.63,155.6,3.19134716]
[1762480509567,0.04505297,155.64,155.6,3.19134716]
[1762480510466,4.99333278,155.63,155.6,3.19134716]
[1762480510670,0.04505297,155.64,155.6,3.19134716]
[1762480510863,4.99347823,155.63,155.6,3.19134716]
[1762480511063,0.04505297,155.64,155.6,3.19134716]
[1762480511262,4.99347729,155.63,155.6,3.19134716]
[1762480511468,0.04505297,155.64,155.6,3.19134716]
[1762480511765,4.99591608,155.63,155.6,3.19134716]
[1762480511961,0.04505297,155.64,155.6,3.19134716]
[1762480512162,4.99569075,155.63,155.6,3.19134716]
[1762480512358,0.04505297,155.64,155.6,3.19134716]
[1762480512567,4.99571347,155.63,155.6,3.19134716]
[1762480512863,0.04505297,155.64,155.6,3.19134716]
[1762480513066,4.99517589,155.63,155.6,3.19134716]
[1762480513263,0.04505297,155.64,155.6,3.19134716]
[1762480513463,4.99852936,155.63,155.6,3.19134716]
[1762480513665,0.04505297,155.64,155.6,3.19134716]
[1762480513869,5.00026078,155.63,155.6,3.19134716]
[1762480514064,0.04505297,155.64,155.61,3.2]
[1762480515368,5.00857567,155.63,155.61,3.2]
[1762480515673,0.04505297,155.64,155.61,3.2]
[1762480515972,5.00742663,155.63,155.61,3.2]
[1762480516172,0.04505297,155.64,155.61,8.9866]
[1762480516375,5.91363795,155.68,155.62,3.2]
[1762480516672,15.61102608,155.77,155.6,4.40282467]
[1762480516673,7.8901693,155.75,155.66,5.7846]
[1762480516860,174.21102608,155.82,155.66,5.7846]
[1762480516861,7.8901693,155.8,155.67,3.2]
[1762480517261,16.19673146,155.82,155.72,3.2]
[1762480517262,7.8901693,155.81,155.72,3.2]
[1762480517467,0.03889157,155.75,155.72,3.2]
[1762480517668,7.8901693,155.82,155.76,3.2]
[1762480517868,12.25164681,155.85,155.76,3.2]
[1762480518067,4.36147751,155.85,155.76,3.2]
[1762480518371,7.8901693,155.9,155.79,3.2]
[1762480518573,4.36147751,155.91,155.79,3.2]
[1762480518767,4.36147751,155.91,155.83,0.04842461]
[1762480519073,13.6651693,155.93,155.83,3.24842461]
[1762480519274,4.36147751,155.92,155.86,0.04835525]
[1762480520568,164.2941,155.96,155.86,3.24835525]
[1762480520771,162.88147751,155.96,155.89,0.04947323]
[1762480521675,168.65527751,155.96,155.89,0.04947323]
[1762480522174,162.88147751,155.96,155.89,0.04947323]
[1762480522570,5.7745,155.94,155.89,0.04947323]
[1762480523774,65.98,155.96,155.89,3.24947323]
[1762480525977,5.7745,155.95,155.89,3.24947323]
[1762480526473,65.98,155.96,155.89,3.24947323]
[1762480526675,5.775,155.93,155.89,0.04947323]
[1762480526975,4.36147751,155.94,155.81,3.2]
[1762480527178,5.7768,155.89,155.81,3.2]
[1762480527681,5.7775,155.87,155.81,3.2]
[1762480528186,0.04797548,155.86,155.82,3.24798022]
[1762480528388,0.04311376,155.86,155.82,3.2473073]
[1762480529578,0.04311376,155.86,155.82,0.0473073]
[1762480529980,4.36147751,155.84,155.82,0.0473073]
[1762480530174,4.36147751,155.84,155.75,3.2]
[1762480530887,4.36147751,155.87,155.75,3.2]
[1762480531176,0.04226137,155.83,155.79,0.04721621]
[1762480532882,0.04226137,155.83,155.79,3.24721621]
[1762480536683,65.88,155.9,155.81,3.2]
[1762480537487,5.7766,155.89,155.81,3.2]
[1762480538077,0.04438976,155.87,155.83,3.23454361]
[1762480539582,0.04438976,155.87,155.83,0.04454361]
[1762480540486,0.04438976,155.87,155.83,3.27454361]
[1762480540684,0.04438976,155.87,155.83,0.04454361]
[1762480541486,4.40586727,155.87,155.75,3.23]
[1762480541679,5.7788,155.83,155.76,3.23]
[1762480542383,0.04781062,155.81,155.77,3.23]
[1762480542577,0.04781062,155.81,155.79,3.23]
[1762480545389,0.04781062,155.81,155.78,0.04417304]
[1762480545390,1.32781062,155.81,155.78,0.04417304]
[1762480545693,71.50147751,155.8,155.7,3.23]
[1762480545896,4.36147751,155.77,155.7,3.23]
[1762480546498,0.04222547,155.75,155.72,0.04483242]
[1762480546685,4.49382653,155.74,155.72,0.04483242]
[1762480546884,4.49382653,155.73,155.72,0.04483242]
[1762480547692,0.04222547,155.75,155.72,0.04483242]
[1762480547693,4.49382653,155.74,155.72,0.04483242]
[1762480547894,4.49382653,155.74,155.65,5.785]
[1762480547895,4.49382653,155.73,155.65,3.23]
[1762480548190,4.65510193,155.72,155.65,3.23]
[1762480548386,4.65510193,155.73,155.65,3.23]
[1762480548584,4.6552672,155.73,155.65,3.23]
[1762480548788,4.6552672,155.75,155.65,3.23]
[1762480548998,0.04457249,155.72,155.69,3.23]
[1762480549697,0.04457249,155.72,155.68,0.04062513]
[1762480550996,4.65860931,155.71,155.62,3.23]
[1762480551298,4.36147751,155.73,155.62,3.23]
[1762480551299,4.65860931,155.7,155.62,3.23]
[1762480551600,10.44274986,155.72,155.62,3.23]
[1762480551793,4.65994986,155.71,155.62,3.23]
[1762480551994,4.36147751,155.76,155.66,3.23]
[1762480552290,4.65974196,155.75,155.66,3.23]
[1762480552491,4.36147751,155.76,155.66,3.23]
[1762480552492,4.65974196,155.74,155.66,3.23]
[1762480552692,4.36147751,155.76,155.66,3.23]
[1762480552893,4.66062336,155.75,155.66,3.23]
[1762480553096,0.0427835,155.72,155.69,0.04854824]
[1762480553602,4.66356523,155.71,155.69,0.04854824]
[1762480553796,4.66356523,155.7,155.69,0.04854824]
[1762480553999,4.66325558,155.7,155.69,0.04854824]
[1762480554500,5.94325558,155.7,155.69,0.04854824]
[1762480554703,5.94325558,155.7,155.63,3.23]
[1762480554889,4.36147751,155.73,155.63,3.23]
[1762480554890,4.66325558,155.69,155.63,3.23]
[1762480555094,4.66325558,155.72,155.63,3.23]
[1762480555295,5.7842,155.68,155.63,3.23]
[1762480555500,5.7842,155.68,155.6,9.0169]
[1762480555699,0.04107845,155.66,155.62,3.27383904]
[1762480557706,0.04107845,155.66,155.62,0.04383904]
[1762480557903,0.04107845,155.66,155.62,3.27383904]
[1762480560709,0.04107845,155.66,155.63,3.23]
[1762480560910,4.36147751,155.77,155.63,3.23]
[1762480561107,4.66803515,155.76,155.67,3.23]
[1762480561312,5.7826,155.73,155.67,3.23]
[1762480561506,4.66803515,155.72,155.62,3.23]
[1762480561706,4.36147751,155.77,155.62,3.23]
[1762480562008,0.04703868,155.71,155.68,0.04682555]
[1762480563411,4.65990757,155.7,155.68,0.04682555]
[1762480563612,4.65990757,155.69,155.6,3.23]
[1762480563918,5.7857,155.64,155.6,3.23]
[1762480564113,4.65990757,155.67,155.6,3.23]
[1762480564413,4.65990757,155.66,155.54,3.23]
[1762480564614,0.04602378,155.62,155.58,0.04828626]
[1762480564808,5.787,155.61,155.58,0.04647618]
[1762480565009,0.04602378,155.62,155.58,0.04647618]
[1762480565214,5.7873,155.6,155.58,0.04647618]
[1762480567411,10.44483752,155.6,155.58,0.04647618]
[1762480567715,4.65753752,155.61,155.49,3.23]
[1762480567914,4.65753752,155.61,155.51,3.23]
[1762480568213,4.36147751,155.62,155.51,3.23]
[1762480568407,4.65753752,155.63,155.51,3.23]
[1762480568613,0.04888715,155.59,155.55,0.04697758]
[1762480568813,0.04888715,155.59,155.55,3.27139853]
[1762480569114,4.65753752,155.68,155.56,3.23]
[1762480569307,5.7856,155.65,155.57,3.23]
[1762480569715,4.65753752,155.68,155.57,3.23]
[1762480569918,4.65753752,155.67,155.57,3.23]
[1762480570110,0.04508932,155.64,155.61,0.04273504]
[1762480570312,5.83098932,155.64,155.61,0.04273504]
[1762480571310,10.48852684,155.64,155.61,0.04273504]
[1762480571517,0.04508932,155.64,155.61,3.05273504]
[1762480571716,0.04508932,155.64,155.61,0.04273504]
[1762480571912,4.70262684,155.64,155.61,0.04273504]
[1762480572112,10.44383752,155.63,155.61,0.04273504]
[1762480572621,5.7863,155.63,155.61,0.04273504]
[1762480572821,0.04508932,155.64,155.61,0.04273504]
[1762480573412,0.04508932,155.64,155.61,3.05273504]
[1762480573811,4.66434034,155.72,155.61,1.32273504]
[1762480574018,4.66434034,155.71,155.62,3.01]
[1762480574207,4.66736758,155.7,155.62,3.01]
[1762480574416,4.66736758,155.72,155.62,3.01]
[1762480574617,4.66736758,155.71,155.62,3.01]
[1762480574915,0.0489152,155.68,155.65,3.05600907]
[1762480577417,4.67166947,155.74,155.67,3.01]
[1762480577618,21.2218,155.75,155.67,3.01]
[1762480577918,4.67186712,155.74,155.67,3.01]
[1762480578112,4.67229965,155.73,155.62,3.01]
[1762480578318,4.67229965,155.72,155.62,3.01]
[1762480578517,0.04219378,155.69,155.65,0.04281678]
[1762480578815,5.7844,155.68,155.65,0.04281678]
[1762480579017,10.45912576,155.68,155.65,0.04281678]
[1762480579223,0.04219378,155.69,155.65,0.04281678]
[1762480579224,4.67572517,155.67,155.65,0.04281678]
[1762480579420,4.67582495,155.66,155.59,3.01]
[1762480579626,4.67568085,155.65,155.54,3.01]
[1762480579926,4.67568085,155.64,155.54,3.01]
[1762480580220,9.92,155.67,155.54,3.01]
[1762480580422,5.7862,155.63,155.56,3.01]
[1762480580620,0.04243613,155.62,155.59,0.04407006]
[1762480580819,5.82903613,155.62,155.59,0.04407006]
[1762480581125,0.04243613,155.62,155.59,0.04407006]
[1762480581434,0.04243613,155.62,155.59,3.05407006]
[1762480583016,0.04243613,155.62,155.59,0.04407006]
[1762480583217,4.682908,155.61,155.59,0.04407006]
[1762480583417,10.470008,155.6,155.59,0.04407006]
[1762480585620,4.682908,155.6,155.59,3.05407006]
[1762480585828,0.04243613,155.62,155.59,3.05407006]
[1762480586720,0.04243613,155.62,155.59,8.84127006]